bitfinex-derivatives/quotes_BTCF0:USTF0_20260106
["timestamp","ask_amount","ask_price","bid_price","bid_amount"]
[1767729501359,0.09677763,92209.0,92197.0,0.010852]
[1767729501661,0.09677763,92209.0,92199.0,0.010851]
[1767729501863,0.010851,92208.0,92194.0,0.010852]
[1767729502058,0.09677763,92208.0,92191.0,0.01476774]
[1767729502665,0.09677763,92208.0,92199.0,0.010852]
[1767729503052,0.09677763,92208.0,92191.0,0.01476774]
[1767729503259,0.11156723,92208.0,92196.0,0.010852]
[1767729503564,0.12241823,92208.0,92195.0,0.010852]
[1767729504061,0.12241823,92208.0,92190.0,0.19512987]
[1767729504062,0.0147896,92206.0,92193.0,0.010852]
[1767729504265,0.09677763,92205.0,92195.0,0.010852]
[1767729504656,0.09228,92214.0,92199.0,0.01476774]
[1767729504855,0.09677763,92217.0,92211.0,0.01085]
[1767729505060,0.09677763,92223.0,92207.0,0.11761761]
[1767729505255,0.09677763,92223.0,92210.0,0.10284987]
[1767729505560,0.09677763,92223.0,92207.0,0.01476774]
[1767729505765,0.09677763,92223.0,92213.0,0.01085]
[1767729506266,0.09677763,92223.0,92203.0,0.01476774]
[1767729506460,0.12241623,92222.0,92207.0,0.010851]
[1767729506662,0.12241623,92222.0,92209.0,0.01085]
[1767729506861,0.12241623,92222.0,92200.0,0.2853842]
[1767729506862,0.12241623,92220.0,92205.0,0.010851]
[1767729507057,0.12241623,92220.0,92200.0,0.30015194]
[1767729508171,0.12241623,92220.0,92206.0,0.010851]
[1767729508558,0.09677763,92219.0,92206.0,0.010851]
[1767729508961,0.010849,92218.0,92205.0,0.010851]
[1767729509162,0.10762663,92218.0,92205.0,0.010851]
[1767729509369,0.09677763,92218.0,92205.0,0.010851]
[1767729509671,0.09677763,92216.0,92205.0,0.010851]
[1767729509964,0.09677763,92216.0,92202.0,0.010851]
[1767729510466,0.09677763,92216.0,92204.0,0.010851]
[1767729512571,0.09677763,92216.0,92200.0,0.15278628]
[1767729515170,0.09677763,92216.0,92206.0,0.010851]
[1767729515971,0.09677763,92216.0,92204.0,0.010851]
[1767729517576,0.09677763,92216.0,92205.0,0.010851]
[1767729519070,0.09677763,92216.0,92206.0,0.010851]
[1767729520178,0.09603526,92214.0,92202.0,0.010851]
[1767729520382,0.01085,92213.0,92200.0,0.15278628]
[1767729520679,0.01085,92213.0,92200.0,0.16363728]
[1767729520877,0.09603526,92214.0,92200.0,0.16363728]
[1767729521078,0.09603526,92203.0,92189.0,0.00216947]
[1767729521289,0.010849,92223.0,92190.0,0.15145595]
[1767729521290,0.10937341,92202.0,92190.0,0.15145595]
[1767729521578,0.09603526,92202.0,92190.0,0.15145595]
[1767729522380,0.09603526,92202.0,92196.0,0.010852]
[1767729523670,0.09603526,92202.0,92193.0,0.010852]
[1767729523990,0.09603526,92202.0,92190.0,0.15145595]
[1767729526182,0.09603526,92202.0,92194.0,0.010852]
[1767729526574,0.09603526,92202.0,92195.0,0.010852]
[1767729526881,0.09603526,92207.0,92195.0,0.010852]
[1767729527784,0.09603526,92207.0,92196.0,0.010852]
[1767729528283,0.10937341,92207.0,92196.0,0.010852]
[1767729530687,0.10937341,92206.0,92196.0,0.010852]
[1767729530978,0.10937341,92206.0,92193.0,0.010852]
[1767729531182,0.09603526,92204.0,92193.0,0.010852]
[1767729532184,0.09603526,92199.0,92190.0,0.15145595]
[1767729532375,0.09603526,92199.0,92191.0,0.010852]
[1767729532683,0.01333815,92203.0,92191.0,0.010852]
[1767729532882,0.01333815,92203.0,92192.0,0.010852]
[1767729533384,0.10937341,92203.0,92190.0,0.16230895]
[1767729537189,0.10937341,92203.0,92191.0,0.010852]
[1767729539894,0.10937341,92203.0,92192.0,0.010852]
[1767729540185,0.09603526,92203.0,92192.0,0.010852]
[1767729540787,0.09603526,92203.0,92193.0,0.010852]
[1767729541590,0.09603526,92203.0,92190.0,0.15145595]
[1767729541790,0.09603526,92203.0,92192.0,0.010852]
[1767729543685,0.09746859,92198.0,92190.0,0.15145595]
[1767729543891,0.09746859,92198.0,92162.0,0.08855039]
[1767729543892,0.10908025,92194.0,92186.0,0.103133]
[1767729544386,0.09746859,92194.0,92186.0,0.103133]
[1767729545184,0.09746859,92194.0,92186.0,0.09228]
[1767729546886,0.010852,92199.0,92186.0,0.09228]
[1767729546887,0.10832059,92199.0,92186.0,0.09228]
[1767729547191,0.11993225,92199.0,92186.0,0.103133]
[1767729549393,0.10908025,92195.0,92179.0,0.06085434]
[1767729549593,0.10908025,92195.0,92176.0,0.01269978]
[1767729549779,0.09746859,92195.0,92177.0,0.10497978]
[1767729550291,0.09746859,92195.0,92178.0,0.1803]
[1767729550511,0.09746859,92195.0,92177.0,0.10497978]
[1767729551094,0.09746859,92195.0,92183.0,0.010853]
[1767729551595,0.10832059,92195.0,92180.0,0.010854]
[1767729551889,0.10832059,92195.0,92181.0,0.010854]
[1767729552096,0.10832059,92195.0,92177.0,0.10497978]
[1767729552097,0.09746859,92195.0,92183.0,0.010853]
[1767729552390,0.09746859,92195.0,92184.0,0.010853]
[1767729553097,0.09746859,92195.0,92181.0,0.010854]
[1767729553599,0.09746859,92195.0,92183.0,0.010853]
[1767729554196,0.09746859,92195.0,92180.0,0.010854]
[1767729554689,0.10832059,92195.0,92180.0,0.010854]
[1767729555494,0.10832059,92195.0,92182.0,0.010854]
[1767729556696,0.09746859,92195.0,92182.0,0.010854]
[1767729557097,0.09746859,92195.0,92179.0,0.010854]
[1767729557294,0.09746859,92195.0,92181.0,0.010854]
[1767729557798,0.10908025,92195.0,92181.0,0.010854]
[1767729558399,0.10908025,92193.0,92181.0,0.010854]
[1767729559589,2.5e-07,92193.0,92178.0,0.010854]
[1767729559793,0.01085,92211.0,92183.0,0.01269978]
[1767729559992,0.010849,92223.0,92189.0,0.010853]
[1767729559993,0.010851,92207.0,92189.0,0.010853]
[1767729560194,0.010851,92207.0,92191.0,0.010852]
[1767729561800,0.01161166,92202.0,92193.0,0.010852]
[1767729562201,0.01161166,92202.0,92195.0,0.010852]
[1767729562597,0.10389166,92214.0,92194.0,0.01269978]
[1767729563001,0.10908025,92213.0,92193.0,0.09453576]
[1767729563301,0.09746859,92210.0,92190.0,0.01269978]
[1767729563500,0.01161166,92209.0,92190.0,0.01269978]
[1767729564305,0.01161166,92209.0,92200.0,0.010851]
[1767729564507,0.01161166,92209.0,92197.0,0.010852]
[1767729564798,0.01161166,92208.0,92197.0,0.010852]
[1767729565205,0.01161166,92208.0,92199.0,0.010852]
[1767729567202,0.01161166,92208.0,92200.0,0.010851]
[1767729567906,0.01161166,92208.0,92202.0,0.010851]
[1767729568607,0.01161166,92208.0,92203.0,0.010851]
[1767729568997,0.09746859,92216.0,92206.0,0.010851]
[1767729569204,0.00216876,92219.0,92201.0,0.01269978]
[1767729569407,0.09228,92217.0,92208.0,0.01085]
[1767729570404,0.01378042,92219.0,92208.0,0.01085]
[1767729570603,0.00216876,92219.0,92214.0,0.01085]
[1767729570909,0.10389166,92226.0,92207.0,0.02355078]
[1767729571310,0.01309723,92225.0,92207.0,0.010851]
[1767729571705,0.01309723,92224.0,92207.0,0.010851]
[1767729571910,0.01309723,92224.0,92213.0,0.01085]
[1767729573412,0.01309723,92224.0,92205.0,0.10860281]
[1767729573902,0.02394623,92224.0,92210.0,0.01085]
[1767729574103,0.01309723,92224.0,92211.0,0.01085]
[1767729575813,0.01309723,92224.0,92213.0,0.01085]
[1767729576604,0.01726047,92225.0,92213.0,0.01085]
[1767729576798,0.4,92224.0,92213.0,0.01085]
[1767729579214,0.4,92224.0,92205.0,0.10860281]
[1767729579412,0.01736319,92225.0,92207.0,0.01406705]
[1767729579603,0.01309723,92226.0,92207.0,0.01406705]
[1767729579913,0.01309723,92224.0,92206.0,0.09407998]
[1767729581208,0.12144153,92225.0,92210.0,0.01085]
[1767729581609,0.01309723,92224.0,92210.0,0.01085]
[1767729582418,0.010849,92223.0,92210.0,0.01085]
[1767729582819,0.01309723,92224.0,92211.0,0.01085]
[1767729583611,0.01309723,92224.0,92212.0,0.01085]
[1767729586412,0.010849,92223.0,92206.0,0.10814703]
[1767729586614,0.02808568,92225.0,92210.0,0.01085]
[1767729586818,0.02808568,92225.0,92212.0,0.01085]
[1767729586819,0.01723668,92225.0,92212.0,0.01085]
[1767729587115,0.02394523,92227.0,92212.0,0.01085]
[1767729587311,0.04128382,92227.0,92212.0,0.01085]
[1767729587510,0.03043582,92227.0,92213.0,0.01085]
[1767729588031,0.03043582,92227.0,92216.0,0.01085]
[1767729588405,0.03043582,92227.0,92217.0,0.010849]
[1767729588822,0.03043582,92227.0,92214.0,0.01085]
[1767729589019,0.01309723,92226.0,92214.0,0.01085]
[1767729589217,0.01309723,92226.0,92212.0,0.01085]
[1767729591621,0.02394523,92226.0,92209.0,0.01085]
[1767729591819,0.010849,92223.0,92209.0,0.01085]
[1767729592017,0.010849,92225.0,92209.0,0.01085]
[1767729593612,0.02394623,92225.0,92209.0,0.01085]
[1767729594421,0.02394623,92225.0,92208.0,0.010851]
[1767729595219,0.02394623,92225.0,92210.0,0.01085]
[1767729596813,0.01309723,92219.0,92185.0,0.010853]
[1767729597120,0.01309723,92209.0,92193.0,0.09228]
[1767729597315,0.01309723,92209.0,92194.0,0.010852]
[1767729597820,0.01309723,92209.0,92195.0,0.010852]
[1767729598524,0.01309723,92209.0,92193.0,0.103132]
[1767729598713,0.01309723,92209.0,92190.0,0.10279172]
[1767729598714,0.01271567,92197.0,92175.0,0.10863982]
[1767729598913,0.010852,92196.0,92181.0,0.010854]
[1767729599113,0.010852,92196.0,92179.0,0.010854]
[1767729599319,0.010852,92194.0,92178.0,0.01199353]
[1767729599520,0.0947666,92198.0,92177.0,0.09664629]
[1767729599521,0.01271567,92195.0,92177.0,0.09664629]
[1767729599928,0.010852,92193.0,92178.0,0.010854]
[1767729600325,0.01271567,92195.0,92178.0,0.010854]
[1767729600935,0.010852,92194.0,92178.0,0.010854]
[1767729601126,0.02356767,92194.0,92178.0,0.010854]
[1767729601320,0.01271567,92194.0,92178.0,0.010854]
[1767729601729,0.01271567,92194.0,92180.0,0.010854]
[1767729602424,0.010852,92195.0,92177.0,0.12139494]
[1767729602928,0.010852,92195.0,92179.0,0.010854]
[1767729603433,0.11861603,92198.0,92181.0,0.010854]
[1767729603730,0.010852,92198.0,92185.0,0.10852509]
[1767729603926,0.010852,92196.0,92185.0,0.09463044]
[1767729604118,0.010852,92199.0,92185.0,0.09463044]
[1767729604323,0.010852,92197.0,92185.0,0.09463044]
[1767729605327,0.01299743,92196.0,92179.0,0.010854]
[1767729605932,0.01299743,92199.0,92179.0,0.010854]
[1767729606232,0.010852,92197.0,92183.0,0.010853]
[1767729606417,0.010852,92197.0,92184.0,0.010853]
[1767729608317,0.010852,92197.0,92181.0,0.10852509]
[1767729608521,0.11578915,92200.0,92181.0,0.10852509]
[1767729608918,0.11578915,92200.0,92182.0,0.010854]
[1767729609523,0.010852,92197.0,92184.0,0.010853]
[1767729610921,0.01299743,92200.0,92184.0,0.010853]
[1767729611121,0.01299743,92200.0,92181.0,0.10852509]
[1767729611317,0.01299743,92210.0,92190.0,0.10279172]
[1767729611519,0.10527743,92217.0,92198.0,0.10279172]
[1767729611829,0.10527743,92217.0,92190.0,0.10279172]
[1767729611830,0.11552232,92226.0,92207.0,0.10279172]
[1767729612025,0.010849,92224.0,92207.0,0.10279172]
[1767729612637,0.09228,92228.0,92215.0,0.01085]
[1767729612823,0.010848,92227.0,92212.0,0.01085]
[1767729613733,0.02809568,92227.0,92211.0,0.10548044]
[1767729616236,0.01724768,92227.0,92213.0,0.01085]
[1767729616430,0.09228,92228.0,92213.0,0.01085]
[1767729618240,0.01299743,92234.0,92213.0,0.10852509]
[1767729618537,0.1936361,92266.0,92226.0,0.09463044]
[1767729618538,0.010846,92245.0,92226.0,0.09463044]
[1767729618726,0.10527743,92251.0,92232.0,0.10852509]
[1767729619122,0.10527743,92251.0,92233.0,0.010848]
[1767729619321,0.010846,92250.0,92233.0,0.010848]
[1767729619528,0.010846,92246.0,92232.0,0.10852509]
[1767729619729,0.010846,92246.0,92232.0,0.09463044]
[1767729620243,0.01299743,92248.0,92228.0,0.01389465]
[1767729620424,0.01299743,92233.0,92226.0,0.07797028]
[1767729620620,0.010847,92237.0,92222.0,0.09228]
[1767729621022,0.00588784,92239.0,92223.0,0.010849]
[1767729621226,0.010847,92241.0,92224.0,0.09463044]
[1767729621436,0.010847,92241.0,92224.0,0.10547944]
[1767729621734,0.01743727,92241.0,92224.0,0.10547944]
[1767729622532,0.00659027,92241.0,92224.0,0.09463044]
[1767729622932,0.00659027,92241.0,92222.0,0.10617465]
[1767729623124,0.00659027,92241.0,92222.0,0.09228]
[1767729623429,0.10923546,92240.0,92222.0,0.09228]
[1767729623935,0.00644374,92240.0,92222.0,0.09228]
[1767729624339,0.01729074,92240.0,92222.0,0.09228]
[1767729624637,0.01729074,92240.0,92224.0,0.010849]
[1767729625520,0.00644374,92240.0,92222.0,0.09228]
[1767729625726,0.10279172,92250.0,92222.0,0.09228]
[1767729625727,0.010847,92235.0,92222.0,0.09228]
[1767729627135,0.010847,92235.0,92223.0,0.09463044]
[1767729627337,0.00442469,102160.0,92239.0,0.10852509]
[1767729627338,0.10279172,92260.0,92239.0,0.10852509]
[1767729627641,0.010845,92255.0,92240.0,0.10852509]
[1767729627836,0.010845,92255.0,92240.0,0.09463044]
[1767729628036,0.010845,92258.0,92241.0,0.11937209]
[1767729628233,0.010845,92258.0,92244.0,0.10852509]
[1767729628439,0.103124,92265.0,92246.0,0.10852509]
[1767729628739,0.09228,92265.0,92247.0,0.10852509]
[1767729628939,0.010844,92261.0,92247.0,0.10852509]
[1767729629537,0.01726669,92261.0,92250.0,0.10279172]
[1767729629739,0.010844,92263.0,92250.0,0.19742216]
[1767729630138,0.02862892,92263.0,92250.0,0.19742216]
[1767729630832,0.01778492,92263.0,92251.0,0.010845]
[1767729631140,0.010844,92266.0,92251.0,0.010845]
[1767729631639,0.01299743,92271.0,92250.0,0.19742216]
[1767729631833,0.01405943,92270.0,92250.0,0.19742216]
[1767729632033,0.01405943,92269.0,92250.0,0.19742216]
[1767729632233,0.03182013,92269.0,92250.0,0.19742216]
[1767729632437,0.01405943,92268.0,92250.0,0.19742216]
[1767729633139,0.010844,92263.0,92250.0,0.19742216]
[1767729633645,0.010844,92261.0,92250.0,0.10279172]
[1767729633841,0.010845,92259.0,92247.0,0.01389465]
[1767729634547,0.010845,92259.0,92231.0,0.48596]
[1767729634548,7.5e-07,92310.0,92294.0,0.09326521]
[1767729634842,0.00216594,92339.0,92316.0,0.01308582]
[1767729635043,0.01786863,92339.0,92325.0,0.09326521]
[1767729635234,0.010832,92368.0,92329.0,0.09326521]
[1767729635431,0.010831,92374.0,92331.0,0.09326521]
[1767729635634,0.02029418,92369.0,92331.0,0.10410121]
[1767729635942,0.010832,92366.0,92327.0,0.25112]
[1767729636240,0.010834,92348.0,92328.0,0.09224]
[1767729636444,0.01405943,92350.0,92328.0,0.09224]
[1767729636638,0.01405943,92350.0,92329.0,0.09326521]
[1767729636830,0.02489243,92356.0,92329.0,0.09326521]
[1767729637031,0.010833,92353.0,92334.0,0.09326521]
[1767729637348,0.010833,92355.0,92334.0,0.09326521]
[1767729637545,0.410833,92355.0,92334.0,0.09326521]
[1767729638147,0.11153829,92362.0,92338.0,0.09326521]
[1767729638332,0.11153829,92362.0,92335.0,0.01308582]
[1767729638333,0.01405943,92362.0,92341.0,0.10410021]
[1767729638531,0.01405943,92368.0,92341.0,0.09326521]
[1767729638732,0.02029418,92369.0,92350.0,0.10409921]
[1767729638949,0.02029418,92369.0,92352.0,0.10409821]
[1767729639132,0.02029418,92369.0,92354.0,0.10409821]
[1767729639332,0.010831,92374.0,92354.0,0.09326521]
[1767729639536,0.01405943,92379.0,92354.0,0.09326521]
[1767729639736,0.02489043,92379.0,92354.0,0.09326521]
[1767729639938,0.02489043,92379.0,92361.0,0.01308582]
[1767729639939,0.0180254,92379.0,92361.0,0.01308582]
[1767729640250,0.09747886,92418.0,92373.0,0.09326521]
[1767729640439,0.09747886,92410.0,92375.0,0.09326521]
[1767729640933,0.010829,92393.0,92375.0,0.09326521]
[1767729641133,0.010829,92389.0,92375.0,0.09326521]
[1767729641747,0.010829,92389.0,92374.0,0.0922]
[1767729642137,0.0941041,92397.0,92374.0,0.0922]
[1767729642138,0.010829,92394.0,92374.0,0.0922]
[1767729642559,0.01405943,92395.0,92374.0,0.0922]
[1767729642944,0.01405943,92402.0,92375.0,0.09326521]
[1767729643148,0.01405943,92401.0,92375.0,0.09326521]
[1767729644550,0.01405943,92395.0,92372.0,0.09326521]
[1767729644867,0.01405943,92391.0,92365.0,0.09326521]
[1767729645152,0.01405943,92391.0,92367.0,0.09326521]
[1767729645359,0.01083,92383.0,92367.0,0.09326521]
[1767729648254,0.010829,92387.0,92369.0,0.09326521]
[1767729648456,0.010829,92391.0,92369.0,0.09326521]
[1767729648650,0.010829,92391.0,92371.0,0.09326521]
[1767729648847,0.010829,92391.0,92371.0,0.10635103]
[1767729649458,0.010829,92388.0,92371.0,0.10635103]
[1767729650751,0.01405943,92396.0,92371.0,0.10635103]
[1767729650954,0.01405943,92396.0,92373.0,0.09326521]
[1767729652256,0.01083,92386.0,92373.0,0.09326521]
[1767729653556,0.01083,92385.0,92373.0,0.09326521]
[1767729654460,0.010829,92389.0,92375.0,0.10635103]
[1767729655155,0.010829,92389.0,92377.0,0.10635103]
[1767729655358,0.01299254,92399.0,92382.0,0.01308582]
[1767729655546,0.00216454,92399.0,92388.0,0.09326521]
[1767729655751,0.00216454,92399.0,92387.0,0.010829]
[1767729655752,0.00216454,92399.0,92390.0,0.09326521]
[1767729655947,0.1240523,92410.0,92397.0,0.01308582]
[1767729655948,0.02861987,92410.0,92397.0,0.01308582]
[1767729656147,0.01779287,92410.0,92398.0,0.09326521]
[1767729656460,0.010827,92411.0,92398.0,0.09326521]
[1767729656659,0.010827,92409.0,92398.0,0.09326521]
[1767729657259,0.010827,92405.0,92398.0,0.09326521]
[1767729658347,0.01827392,92413.0,92398.0,0.09326521]
[1767729658551,0.010827,92407.0,92398.0,0.09326521]
[1767729658750,0.010827,92409.0,92398.0,0.09326521]
[1767729658956,0.01827392,92413.0,92398.0,0.09326521]
[1767729659263,0.010827,92410.0,92398.0,0.09326521]
[1767729659447,0.010827,92410.0,92398.0,0.10635103]
[1767729659652,0.010827,92410.0,92400.0,0.09326521]
[1767729660158,0.01827392,92413.0,92405.0,0.01308582]
[1767729660159,1e-08,92413.0,92405.0,0.01308582]
[1767729660457,0.010826,92418.0,92406.0,0.09326521]
[1767729660765,0.010826,92418.0,92405.0,0.01308582]
[1767729660766,0.02912323,92418.0,92408.0,0.09326521]
[1767729660950,0.01829723,92418.0,92408.0,0.10635103]
[1767729661155,0.09212,92432.0,92408.0,0.10418579]
[1767729661465,0.010826,92418.0,92409.0,0.01308582]
[1767729661848,0.02000932,92429.0,92409.0,0.01308582]
[1767729662059,0.010824,92438.0,92414.0,0.01948061]
[1767729662263,0.09212,92460.0,92430.0,0.01948061]
[1767729662264,0.01858766,92455.0,92430.0,0.01948061]
[1767729662450,0.010822,92452.0,92433.0,0.01948061]
[1767729662657,0.00216313,92459.0,92434.0,0.11160061]
[1767729662854,0.00216313,92459.0,92435.0,0.09212]
[1767729663074,0.02001007,92456.0,92436.0,0.09921195]
[1767729663257,0.010823,92447.0,92442.0,0.09921195]
[1767729663455,0.010823,92446.0,92436.0,0.09921195]
[1767729663772,0.010822,92452.0,92436.0,0.09921195]
[1767729663955,0.010822,92449.0,92436.0,0.09921195]
[1767729664156,0.010822,92449.0,92437.0,0.09212]
[1767729664360,0.010822,92452.0,92437.0,0.09212]
[1767729664655,0.010822,92452.0,92437.0,0.19133195]
[1767729664958,0.010822,92452.0,92438.0,0.09921195]
[1767729665760,0.02001007,92454.0,92438.0,0.09921195]
[1767729665761,0.010822,92448.0,92438.0,0.09921195]
[1767729665966,0.02001007,92454.0,92424.0,0.02121218]
[1767729665967,0.010823,92440.0,92424.0,0.02121218]
[1767729666267,0.02029027,92459.0,92437.0,0.02121218]
[1767729666468,0.03172153,92456.0,92425.0,0.010825]
[1767729666656,0.09208,92455.0,92425.0,0.010825]
[1767729666856,0.010823,92446.0,92427.0,0.010825]
[1767729667267,0.010822,92449.0,92429.0,0.010824]
[1767729667466,0.010823,92447.0,92429.0,0.010824]
[1767729667751,0.010823,92443.0,92427.0,0.010825]
[1767729667955,0.010823,92446.0,92430.0,0.09440089]
[1767729668469,0.010823,92444.0,92431.0,0.09440089]
[1767729668968,0.010823,92440.0,92431.0,0.09440089]
[1767729669266,0.010823,92445.0,92431.0,0.09223495]
[1767729669660,0.010822,92450.0,92431.0,0.12427113]
[1767729669970,0.010822,92448.0,92432.0,0.02121218]
[1767729670267,0.010823,92446.0,92428.0,0.010825]
[1767729670467,0.010823,92446.0,92429.0,0.02121218]
[1767729670860,0.010823,92443.0,92429.0,0.02121218]
[1767729671261,0.010823,92443.0,92430.0,0.09440089]
[1767729671663,0.010823,92443.0,92430.0,0.11561307]
[1767729672072,0.09208,92447.0,92440.0,0.11561307]
[1767729672271,0.09208,92449.0,92441.0,0.010823]
[1767729672473,0.03111127,92459.0,92443.0,0.010823]
[1767729672670,0.010821,92457.0,92442.0,0.11561307]
[1767729673172,0.09208,92458.0,92437.0,0.02121218]
[1767729673572,0.010822,92450.0,92437.0,0.02121218]
[1767729673772,0.010822,92453.0,92437.0,0.02121218]
[1767729674378,0.09208,92456.0,92445.0,0.02121218]
[1767729674568,0.010822,92453.0,92439.0,0.02121218]
[1767729674878,0.102901,92456.0,92439.0,0.02121218]
[1767729675073,0.010822,92454.0,92439.0,0.010823]
[1767729675370,0.09208,92456.0,92441.0,0.03203518]
[1767729675582,0.00148926,92449.0,92441.0,0.03203518]
[1767729676174,0.00148926,92449.0,92443.0,0.010823]
[1767729676478,2.6e-07,92446.0,92443.0,0.010823]
[1767729676678,0.01812714,92459.0,92453.0,0.010822]
[1767729676883,0.047,92470.0,92460.0,0.010821]
[1767729677077,0.047,92470.0,92457.0,0.11561307]
[1767729677281,0.047,92470.0,92461.0,0.010821]
[1767729677577,0.06485105,92470.0,92457.0,0.12643407]
[1767729677783,0.01082,92468.0,92457.0,0.09440089]
[1767729677969,0.01082,92469.0,92457.0,0.09440089]
[1767729678381,0.06485105,92470.0,92457.0,0.09440089]
[1767729678577,0.07567105,92470.0,92457.0,0.09440089]
[1767729678782,0.06485105,92470.0,92458.0,0.02121218]
[1767729678988,0.06485105,92470.0,92457.0,0.09440089]
[1767729679183,0.07567105,92470.0,92457.0,0.09440089]
[1767729679483,0.06485105,92470.0,92447.0,0.02121218]
[1767729679690,0.15926122,92470.0,92447.0,0.11561307]
[1767729679884,0.15926122,92470.0,92448.0,0.11329218]
[1767729680086,0.15926122,92470.0,92448.0,0.21851507]
[1767729680389,0.15926122,92470.0,92448.0,0.20769307]
[1767729680694,0.010821,92458.0,92442.0,0.11561307]
[1767729681084,0.010822,92454.0,92443.0,0.11325218]
[1767729681286,0.010821,92457.0,92443.0,0.20765307]
[1767729681493,0.09441017,92455.0,92429.0,0.09440089]
[1767729681695,0.09441017,92455.0,92430.0,0.102864]
[1767729681696,0.010823,92445.0,92430.0,0.102864]
[1767729681890,0.010822,92449.0,92432.0,0.010824]
[1767729682089,0.010823,92447.0,92432.0,0.010824]
[1767729683091,0.010823,92443.0,92431.0,0.11561307]
[1767729683292,0.010823,92443.0,92432.0,0.09204]
[1767729683597,0.010823,92443.0,92413.0,0.06921029]
[1767729683598,0.09441017,92443.0,92422.0,0.09204]
[1767729683795,0.010824,92438.0,92422.0,0.010825]
[1767729684094,0.09441017,92443.0,92420.0,0.11325218]
[1767729684095,0.010824,92430.0,92420.0,0.11325218]
[1767729684290,0.010824,92431.0,92418.0,0.09440089]
[1767729684491,0.010824,92431.0,92419.0,0.09204]
[1767729684882,0.09441017,92435.0,92410.0,0.09204]
[1767729685087,0.010824,92431.0,92415.0,0.010826]
[1767729686088,0.010824,92431.0,92411.0,0.11542866]
[1767729686089,0.010824,92434.0,92417.0,0.010826]
[1767729686289,0.010824,92434.0,92412.0,0.02121218]
[1767729686290,0.09441017,92435.0,92415.0,0.010826]
[1767729686493,0.010825,92427.0,92413.0,0.09440089]
[1767729686688,0.010825,92430.0,92413.0,0.010826]
[1767729686894,0.1153107,92433.0,92411.0,0.010827]
[1767729687095,0.010825,92429.0,92413.0,0.010826]
[1767729687484,0.010825,92429.0,92415.0,0.010826]
[1767729687690,0.010825,92429.0,92412.0,0.12643907]
[1767729688300,0.010824,92432.0,92418.0,0.11561307]
[1767729688800,0.010825,92430.0,92418.0,0.11561307]
[1767729688996,0.010825,92428.0,92418.0,0.11561307]
[1767729689298,0.010825,92429.0,92413.0,0.010826]
[1767729689496,0.010825,92429.0,92413.0,0.12643907]
[1767729689796,0.09204,92433.0,92410.0,0.010827]
[1767729690003,0.1153107,92432.0,92410.0,0.010827]
[1767729690501,0.09204,92433.0,92410.0,0.010827]
[1767729690502,0.1153107,92431.0,92410.0,0.010827]
[1767729690802,0.010825,92423.0,92408.0,0.09204]
[1767729691496,0.09204,92433.0,92410.0,0.02197481]
[1767729691697,0.010823,92441.0,92420.0,0.02197481]
[1767729691906,0.010823,92439.0,92424.0,0.010825]
[1767729692103,0.09257033,92445.0,92423.0,0.11621352]
[1767729692288,0.102902,92451.0,92436.0,0.010824]
[1767729692600,0.010822,92449.0,92434.0,0.11621352]
[1767729692797,0.010822,92449.0,92434.0,0.09423871]
[1767729692987,0.010823,92447.0,92434.0,0.09423871]
[1767729693194,0.010823,92447.0,92432.0,0.010824]
[1767729693696,0.18465033,92451.0,92428.0,0.09423871]
[1767729694000,0.18465033,92451.0,92424.0,0.021943]
[1767729694001,0.010823,92442.0,92425.0,0.010825]
[1767729694590,0.09208,92451.0,92421.0,0.09423871]
[1767729694591,0.010824,92436.0,92421.0,0.09423871]
[1767729694803,0.010824,92437.0,92419.0,0.12458461]
[1767729694996,0.010823,92443.0,92427.0,0.010825]
[1767729695391,0.09208,92442.0,92427.0,0.11591732]
[1767729695591,0.09208,92446.0,92428.0,0.11423714]
[1767729695806,0.010823,92439.0,92425.0,0.010825]
[1767729696096,0.010824,92437.0,92424.0,0.01999843]
[1767729697194,0.010824,92437.0,92424.0,0.03082343]
[1767729697503,0.09208,92446.0,92331.0,0.30764087]
[1767729697504,0.010825,92426.0,92415.0,0.09423871]
[1767729697699,0.010825,92429.0,92415.0,0.09423871]
[1767729698691,0.02386783,92438.0,92415.0,0.09423871]
[1767729698692,0.010825,92427.0,92415.0,0.09423871]
[1767729698995,0.09257033,92435.0,92412.0,0.0197405]
[1767729699194,0.11643816,92434.0,92411.0,0.010827]
[1767729699397,0.010824,92431.0,92412.0,0.01877211]
[1767729699599,0.02386783,92439.0,92411.0,0.18631871]
[1767729699600,0.09208,92439.0,92425.0,0.01877211]
[1767729699798,0.09208,92439.0,92425.0,0.12383582]
[1767729699999,0.09208,92439.0,92427.0,0.010825]
[1767729700396,0.010824,92436.0,92425.0,0.11301082]
[1767729700594,0.102903,92439.0,92425.0,0.10506371]
[1767729701308,0.010824,92434.0,92422.0,0.010825]
[1767729701509,0.010824,92432.0,92418.0,0.010826]
[1767729701801,0.00216383,92429.0,92418.0,0.010826]
[1767729704105,0.010825,92428.0,92415.0,0.010826]
[1767729704306,0.00216383,92429.0,92413.0,0.09208]
[1767729704307,0.010825,92425.0,92413.0,0.09208]
[1767729704610,0.010825,92425.0,92412.0,0.102907]
[1767729704907,0.010825,92428.0,92414.0,0.010826]
[1767729705103,0.00216383,92429.0,92418.0,0.010826]
[1767729705509,0.00216383,92429.0,92414.0,0.010826]
[1767729705697,0.00216383,92429.0,92416.0,0.010826]
[1767729706404,0.010825,92428.0,92413.0,0.010826]
[1767729706607,0.01298883,92429.0,92413.0,0.09423871]
[1767729706910,0.01298883,92429.0,92413.0,0.10506471]
[1767729707710,0.01298883,92429.0,92415.0,0.010826]
[1767729709606,0.00216383,92429.0,92417.0,0.010826]
[1767729709812,0.00216383,92429.0,92417.0,0.00866146]
[1767729710112,0.00216383,92429.0,92414.0,0.01740426]
[1767729710310,0.00216383,92429.0,92415.0,0.010826]
[1767729710912,0.00216383,92429.0,92417.0,0.010826]
[1767729711417,0.00216383,92429.0,92419.0,0.010826]
[1767729711602,0.01298883,92429.0,92416.0,0.010826]
[1767729711799,0.01298883,92429.0,92414.0,0.01740426]
[1767729712013,0.01298883,92429.0,92415.0,0.010826]
[1767729712605,0.010825,92427.0,92414.0,0.01740426]
[1767729712806,0.00216383,92429.0,92418.0,0.010826]
[1767729714309,0.00216383,92429.0,92414.0,0.11164297]
[1767729715516,0.010825,92424.0,92414.0,0.11164297]
[1767729715810,0.010825,92424.0,92398.0,0.010828]
[1767729715811,0.00216383,92429.0,92411.0,0.09208]
[1767729716020,0.010825,92423.0,92411.0,0.09208]